[Event "FIDE World Cup G12-B 2024"]
[Site "Batumi"]
[Date "2024.06.25"]
[Round "3.8"]
[White "Tereshchenko, Eliza"]
[Black "Shomanova, Adiya"]
[Result "0-1"]
[ECO "D00"]
[WhiteElo "1694"]
[BlackElo "1542"]
[Annotator "NA RC"]
[PlyCount "32"]
[EventDate "2024.06.23"]
[EventType "swiss"]
[EventCountry "GEO"]
[SourceTitle "playchess.com"]
[Source "ChessBase"]
[SourceQuality "1"]
[TimeControl "5400+30"]

1. d4 {[%emt 0:00:01]} d5 {[%emt 0:00:12]} 2. Bf4 {[%emt 0:00:04]} Nf6 {[%emt 0:00:28]} 3. e3 {[%emt 0:00:07]} c5 {[%emt 0:00:22]} 4. c3 {[%emt 0:00:09]} Nc6 {[%emt 0:00:28]} 5. Nd2 {[%emt 0:00:08]} Bf5 {[%emt 0:01:13]} 6. Qb3 {[%emt 0:00:24]} Qb6 {[%emt 0:09:27]} 7. dxc5 {[%emt 0:00:19]} Qxb3 {[%emt 0:00:58]} 8. axb3 {[%emt 0:00:12]} e5 {[%emt 0:00:47]} 9. Bg3 {[%emt 0:00:47]} Bxc5 {[%emt 0:00:18]} 10. Bb5 {[%emt 0:03:41]} Bd6 {[%emt 0:08:26]} 11. Ngf3 {[%emt 0:07:01]} Nd7 {[%emt 0:01:12]} 12. O-O-O {[%emt 0:11:34]} Rc8 {[%emt 0:03:00]} 13. e4 {[%emt 0:08:56]} Bg6 {[%emt 0:16:00]} 14. Bxc6 {[%emt 0:09:08]} Rxc6 {[%emt 0:00:14]} 15. exd5 {[%emt 0:09:56]} Rxc3+ {[%emt 0:00:48]} 16. bxc3 {[%emt 0:00:18]} Ba3# {[%emt 0:00:07]} 0-1

[Event "FIDE World Cup G12-B 2024"]
[Site "Batumi"]
[Date "2024.06.25"]
[Round "3.9"]
[White "Gao, Lilianna"]
[Black "Amin-Erdene, Tsengel"]
[Result "0-1"]
[ECO "E42"]
[WhiteElo "1646"]
[BlackElo "1491"]
[Annotator "NA RC"]
[PlyCount "76"]
[EventDate "2024.06.23"]
[EventType "swiss"]
[EventCountry "GEO"]
[SourceTitle "playchess.com"]
[Source "ChessBase"]
[SourceQuality "1"]
[TimeControl "5400+30"]

1. d4 {[%emt 0:00:08]} Nf6 {[%emt 0:00:48]} 2. c4 {[%emt 0:00:26]} e6 {[%emt 0:00:25]} 3. Nc3 {[%emt 0:00:23]} Bb4 {[%emt 0:01:04]} 4. e3 {[%emt 0:00:51]} c5 {[%emt 0:01:15]} 5. Nge2 {[%emt 0:01:14]} b6 {[%emt 0:01:38]} 6. a3 {[%emt 0:01:41]} Ba5 {[%emt 0:01:37]} 7. Rb1 {[%emt 0:01:40]} Qe7 {[%emt 0:02:49]} 8. d5 {[%emt 0:09:07]} exd5 {[%emt 0:05:31]} 9. cxd5 {[%emt 0:00:49]} Ne4 {[%emt 0:01:54]} 10. Qc2 {[%emt 0:04:16]} Ba6 {[%emt 0:09:27]} 11. g3 {[%emt 0:14:06]} Nxc3 {[%emt 0:04:33]} 12. bxc3 {[%emt 0:01:44]} Qe5 {[%emt 0:07:02]} 13. Bg2 {[%emt 0:08:47]} Bxe2 {[%emt 0:03:16]} 14. Qxe2 {[%emt 0:02:44]} Bxc3+ {[%emt 0:01:43]} 15. Bd2 {[%emt 0:00:36]} Bxd2+ {[%emt 0:01:01]} 16. Qxd2 {[%emt 0:00:24]} d6 {[%emt 0:01:40]} 17. O-O {[%emt 0:03:12]} O-O {[%emt 0:02:31]} 18. f4 {[%emt 0:02:55]} Qe7 {[%emt 0:03:51]} 19. e4 {[%emt 0:01:51]} Nd7 {[%emt 0:05:30]} 20. e5 {[%emt 0:09:44]} Rac8 {[%emt 0:03:54]} 21. e6 {[%emt 0:01:54]} fxe6 {[%emt 0:02:52]} 22. dxe6 {[%emt 0:00:42]} Nf6 {[%emt 0:02:27]} 23. f5 {[%emt 0:02:52]} d5 {[%emt 0:04:22]} 24. Qg5 {[%emt 0:04:08]} c4 {[%emt 0:04:11]} 25. Rf3 {[%emt 0:08:09]} d4 {[%emt 0:03:09]} 26. h4 {[%emt 0:03:12]} d3 {[%emt 0:01:50]} 27. a4 {[%emt 0:01:12]} Rfd8 {[%emt 0:03:29]} 28. Bf1 {[%emt 0:05:19]} d2 {[%emt 0:01:54]} 29. Be2 {[%emt 0:01:31]} c3 {[%emt 0:01:02]} 30. Bd3 {[%emt 0:02:42]} Rxd3 {[%emt 0:06:37]} 31. Rff1 {[%emt 0:02:20]} c2 {[%emt 0:00:52]} 32. Ra1 {[%emt 0:00:16]} d1=Q {[%emt 0:12:16]} 33. Raxd1 {[%emt 0:00:15]} cxd1=Q {[%emt 0:00:00]} 34. Rxd1 {[%emt 0:06:20]} Rxd1+ {[%emt 0:00:00]} 35. Kg2 {[%emt 0:00:00]} Rc2+ {[%emt 0:00:00]} 36. Kf3 {[%emt 0:00:00]} Rd3+ {[%emt 0:00:00]} 37. Kf4 {[%emt 0:00:00]} Rc4+ {[%emt 0:00:00]} 38. Ke5 {[%emt 0:00:00]} Qd6# {[%emt 0:00:00]} 0-1

[Event "FIDE World Cup G12-B 2024"]
[Site "Batumi"]
[Date "2024.06.25"]
[Round "3.10"]
[White "QUICKPEN, Deborah Ebimobo-ere"]
[Black "Bechvaia, Anastasia"]
[Result "1-0"]
[ECO "E62"]
[WhiteElo "2048"]
[BlackElo "1549"]
[Annotator "RC"]
[PlyCount "111"]
[EventDate "2024.06.23"]
[EventType "swiss"]
[EventCountry "GEO"]
[SourceTitle "playchess.com"]
[Source "ChessBase"]
[SourceQuality "1"]
[TimeControl "5400+30"]

1. c4 {[%emt 0:04:11]} d6 {[%emt 0:00:07]} 2. g3 {[%emt 0:00:23]} Nf6 {[%emt 0:00:10]} 3. Bg2 {[%emt 0:00:07]} g6 {[%emt 0:00:07]} 4. d4 {[%emt 0:00:14]} Bg7 {[%emt 0:00:12]} 5. Nf3 {[%emt 0:00:22]} O-O {[%emt 0:00:22]} 6. Nc3 {[%emt 0:00:15]} c6 {[%emt 0:00:24]} 7. e4 {[%emt 0:00:41]} Bg4 {[%emt 0:00:14]} 8. O-O {[%emt 0:00:30]} Re8 {[%emt 0:00:41]} 9. h3 {[%emt 0:01:07]} Bxf3 {[%emt 0:00:08]} 10. Bxf3 {[%emt 0:00:07]} Qc7 {[%emt 0:00:21]} 11. Be3 {[%emt 0:01:55]} Nbd7 {[%emt 0:00:35]} 12. Qb3 {[%emt 0:04:36]} e5 {[%emt 0:01:29]} 13. d5 {[%emt 0:06:13]} Nf8 {[%emt 0:02:37]} 14. Rac1 {[%emt 0:05:11]} Qd7 {[%emt 0:02:44]} 15. Kh2 {[%emt 0:03:44]} h6 {[%emt 0:01:03]} 16. Rfd1 {[%emt 0:04:17]} Red8 {[%emt 0:02:00]} 17. a4 {[%emt 0:04:29]} c5 {[%emt 0:04:50]} 18. a5 {[%emt 0:03:37]} a6 {[%emt 0:00:45]} 19. Na4 {[%emt 0:00:35]} Qc7 {[%emt 0:01:07]} 20. Nb6 {[%emt 0:00:22]} Rab8 {[%emt 0:00:17]} 21. Qa3 {[%emt 0:02:05]} N6d7 {[%emt 0:00:55]} 22. b4 {[%emt 0:00:46]} cxb4 {[%emt 0:00:28]} 23. Qxb4 {[%emt 0:00:11]} Nc5 {[%emt 0:00:36]} 24. Bxc5 {[%emt 0:00:36]} Qxc5 {[%emt 0:00:23]} 25. Qxc5 {[%emt 0:00:43]} dxc5 {[%emt 0:00:08]} 26. Na4 {[%emt 0:00:40]} Nd7 {[%emt 0:00:36]} 27. Bg4 {[%emt 0:00:16]} Bf8 {[%emt 0:00:09]} 28. Rb1 {[%emt 0:01:32]} h5 {[%emt 0:01:34]} 29. Bxd7 {[%emt 0:00:10]} Rxd7 {[%emt 0:00:09]} 30. Rb6 {[%emt 0:00:35]} Rd6 {[%emt 0:00:56]} 31. Rdb1 {[%emt 0:00:39]} Rd7 {[%emt 0:00:33]} 32. Rxa6 {[%emt 0:00:27]} Bd6 {[%emt 0:00:55]} 33. Rab6 {[%emt 0:00:32]} f5 {[%emt 0:00:49]} 34. a6 {[%emt 0:00:41]} fxe4 {[%emt 0:01:27]} 35. Rxb7 {[%emt 0:00:29]} Rdxb7 {[%emt 0:00:14]} 36. Rxb7 {[%emt 0:00:07]} Rxb7 {[%emt 0:00:06]} 37. axb7 {[%emt 0:00:05]} Kf7 {[%emt 0:00:13]} 38. Nxc5 {[%emt 0:00:07]} Bb8 {[%emt 0:00:24]} 39. Na6 {[%emt 0:00:23]} Ba7 {[%emt 0:00:06]} 40. c5 {[%emt 0:00:20]} Ke7 {[%emt 0:00:08]} 41. b8=Q {[%emt 0:00:46]} Bxb8 {[%emt 0:00:06]} 42. Nxb8 {[%emt 0:00:05]} Kd8 {[%emt 0:00:11]} 43. Nc6+ {[%emt 0:00:10]} Kc7 {[%emt 0:00:06]} 44. Nxe5 {[%emt 0:00:05]} g5 {[%emt 0:00:07]} 45. d6+ {[%emt 0:00:04]} Kd8 {[%emt 0:00:06]} 46. c6 {[%emt 0:00:10]} Kc8 {[%emt 0:00:06]} 47. d7+ {[%emt 0:00:05]} Kc7 {[%emt 0:00:10]} 48. Nf7 {[%emt 0:00:06]} g4 {[%emt 0:00:14]} 49. d8=Q+ {[%emt 0:00:08]} Kxc6 {[%emt 0:00:11]} 50. Qd6+ {[%emt 0:00:09]} Kb5 {[%emt 0:00:04]} 51. Ne5 {[%emt 0:00:10]} gxh3 {[%emt 0:00:11]} 52. Qc6+ {[%emt 0:00:05]} Kb4 {[%emt 0:00:06]} 53. Qc4+ {[%emt 0:00:05]} Ka3 {[%emt 0:00:05]} 54. Qb5 {[%emt 0:00:07]} e3 {[%emt 0:00:07]} 55. Nc4+ {[%emt 0:00:05]} Ka2 {[%emt 0:00:08]} 56. Qb2# {[%emt 0:00:35]} 1-0

[Event "FIDE World Cup G12-B 2024"]
[Site "Batumi"]
[Date "2024.06.25"]
[Round "3.12"]
[White "Kvirkvelia, Anastasia"]
[Black "Nakashidze, Nino"]
[Result "1/2-1/2"]
[ECO "A00"]
[WhiteElo "1440"]
[BlackElo "1618"]
[Annotator "NA RC"]
[PlyCount "122"]
[EventDate "2024.06.23"]
[EventType "swiss"]
[EventCountry "GEO"]
[SourceTitle "playchess.com"]
[Source "ChessBase"]
[SourceQuality "1"]
[TimeControl "5400+30"]

1. g3 {[%emt 0:00:02]} d5 {[%emt 0:00:29]} 2. Bg2 {[%emt 0:00:06]} Nf6 {[%emt 0:00:14]} 3. d3 {[%emt 0:00:06]} h6 {[%emt 0:00:32]} 4. Nf3 {[%emt 0:00:07]} e6 {[%emt 0:02:01]} 5. O-O {[%emt 0:00:09]} Bd6 {[%emt 0:00:19]} 6. Bd2 {[%emt 0:00:12]} O-O {[%emt 0:00:53]} 7. Nc3 {[%emt 0:00:13]} Bd7 {[%emt 0:00:47]} 8. h3 {[%emt 0:03:30]} a6 {[%emt 0:00:51]} 9. Kh2 {[%emt 0:00:35]} Nc6 {[%emt 0:00:13]} 10. e4 {[%emt 0:00:11]} dxe4 {[%emt 0:01:11]} 11. dxe4 {[%emt 0:00:08]} e5 {[%emt 0:15:56]} 12. Ng1 {[%emt 0:00:31]} Nd4 {[%emt 0:05:03]} 13. f4 {[%emt 0:03:18]} Qe7 {[%emt 0:12:49]} 14. f5 {[%emt 0:01:08]} c6 {[%emt 0:14:20]} 15. Nf3 {[%emt 0:02:47]} Nxf3+ {[%emt 0:06:09]} 16. Qxf3 {[%emt 0:01:30]} Rad8 {[%emt 0:01:08]} 17. g4 {[%emt 0:01:59]} Nh7 {[%emt 0:01:37]} 18. Ne2 {[%emt 0:05:49]} Ng5 {[%emt 0:06:12]} 19. Bxg5 {[%emt 0:01:28]} Qxg5 {[%emt 0:00:26]} 20. Ng3 {[%emt 0:00:49]} g6 {[%emt 0:08:53]} 21. Rad1 {[%emt 0:11:01]} Bc5 {[%emt 0:06:30]} 22. Qb3 {[%emt 0:01:14]} gxf5 {[%emt 0:07:19]} 23. gxf5 {[%emt 0:01:18]} Bc8 {[%emt 0:01:30]} 24. Ne2 {[%emt 0:08:54]} Rxd1 {[%emt 0:04:56]} 25. Rxd1 {[%emt 0:00:07]} Kh8 {[%emt 0:00:54]} 26. Qc3 {[%emt 0:00:26]} Be7 {[%emt 0:01:24]} 27. Qxe5+ {[%emt 0:00:40]} Bf6 {[%emt 0:00:07]} 28. Qc5 {[%emt 0:01:17]} Re8 {[%emt 0:01:05]} 29. Qc4 {[%emt 0:01:45]} Bxf5 {[%emt 0:00:37]} 30. exf5 {[%emt 0:00:10]} Rg8 {[%emt 0:00:32]} 31. Rg1 {[%emt 0:00:36]} Be5+ {[%emt 0:00:31]} 32. Kh1 {[%emt 0:00:15]} Rf8 {[%emt 0:00:31]} 33. Bf3 {[%emt 0:01:56]} Qf6 {[%emt 0:00:30]} 34. Qg4 {[%emt 0:00:38]} Bxb2 {[%emt 0:00:28]} 35. Ng3 {[%emt 0:00:33]} Bd4 {[%emt 0:00:30]} 36. Nh5 {[%emt 0:00:56]} Qe5 {[%emt 0:00:29]} 37. f6 {[%emt 0:00:52]} Qg5 {[%emt 0:00:33]} 38. Qxg5 {[%emt 0:00:06]} hxg5 {[%emt 0:00:05]} 39. Rxg5 {[%emt 0:00:06]} Kh7 {[%emt 0:00:41]} 40. Ng7 {[%emt 0:00:55]} Bxf6 {[%emt 0:00:31]} 41. Be4+ {[%emt 0:04:34]} Kh6 {[%emt 0:00:15]} 42. Rh5+ {[%emt 0:00:05]} Kxg7 {[%emt 0:00:14]} 43. Rh7+ {[%emt 0:00:04]} Kg8 {[%emt 0:00:15]} 44. h4 {[%emt 0:00:33]} Re8 {[%emt 0:00:45]} 45. Bd3 {[%emt 0:00:17]} b5 {[%emt 0:00:45]} 46. Kg2 {[%emt 0:01:53]} c5 {[%emt 0:00:14]} 47. Rh5 {[%emt 0:01:26]} c4 {[%emt 0:00:39]} 48. Bf1 {[%emt 0:00:29]} Re5 {[%emt 0:00:08]} 49. Rxe5 {[%emt 0:00:16]} Bxe5 {[%emt 0:00:11]} 50. Kf3 {[%emt 0:00:05]} Kg7 {[%emt 0:00:21]} 51. Kg4 {[%emt 0:00:05]} Kg6 {[%emt 0:00:37]} 52. h5+ {[%emt 0:00:34]} Kh6 {[%emt 0:00:22]} 53. Be2 {[%emt 0:00:22]} f6 {[%emt 0:00:40]} 54. Kf5 {[%emt 0:00:14]} Bd4 {[%emt 0:01:00]} 55. Kg4 {[%emt 0:00:14]} a5 {[%emt 0:00:26]} 56. Kf5 {[%emt 0:01:06]} b4 {[%emt 0:00:59]} 57. Kg4 {[%emt 0:00:10]} c3 {[%emt 0:00:16]} 58. Kf5 {[%emt 0:00:04]} a4 {[%emt 0:00:37]} 59. Bd1 {[%emt 0:00:27]} b3 {[%emt 0:00:54]} 60. cxb3 {[%emt 0:00:21]} axb3 {[%emt 0:00:08]} 61. axb3 {[%emt 0:00:16]} Be5 {[%emt 0:00:18]} 1/2-1/2